Cogmind - Beta 11 @@@ ROGUE MODE // 2022.03.19 @ 11:09:31 Player: Pitt Result: Destroyed by G-50 Soldier with Heavy Laser Performance ------------- Evolutions (2) 1000 Regions Visited (4) 800 Robots Destroyed (30) 150 Value Destroyed (714) 714 Prototype IDs (3) 60 Alien Tech Used (0) 0 Bonus (0) 0 TOTAL SCORE: 2724 Bonus ------- None Cogmind --------- Core Integrity 0/550 Matter 274/300 Energy 37/100 System Corruption 0% Temperature Cool (9) Movement Core (50) Location -8/Storage Parts ------- > --- POWER (1) -------- (None) > --- PROPULSION (4) --- (None) > --- UTILITY (4) ------ Targeting Computer > --- WEAPON (2) ------- (None) > --- INVENTORY (5) ---- VSS Leg Hover Unit Flight Unit Structural Scanner Improved Medium Laser Peak State ------------ > --- POWER ------------ Light Ion Engine > --- PROPULSION ------- Flight Unit Flight Unit Flight Unit Flight Unit > --- UTILITY ---------- Medium Storage Unit Visual Processing Unit Improved Terrain Scanner Seismic Detector > --- WEAPON ----------- Heavy Particle Cannon Improved Assault Rifle > --- INVENTORY -------- Hover Unit Hover Unit Small Storage Unit Structural Scanner EM Pulse Gun Improved Medium Laser Mini Grenade Launcher Mining Laser [Rating: 19] Favorites ----------- Power Light Ion Engine Engine Light Ion Engine Propulsion Aluminum Leg Leg Aluminum Leg Hover Unit Hover Unit Flight Unit Flight Unit Utility Improved Terrain Scanner Device Improved Terrain Scanner Storage Small Storage Unit Processor Visual Processing Unit Weapon Assault Rifle Energy Gun Improved Medium Laser Energy Cannon Heavy Particle Cannon Ballistic Gun Assault Rifle Ballistic Cannon Light Cannon Launcher Advanced EMP Blaster Special Weapon Mining Laser Build | -11 -10 -9 -8 -8 ------- Run | Scr Mat Mat Mat Sto Slots Evolved 4 | . . 2 2 . Power . | . . . . . Propulsion 2 | . . . 2 . Utility 2 | . . 2 . . Weapon . | . . . . . Parts Attached 50 | 7 7 17 5 14 Power 4 | 1 1 2 . . Engine 4 | 1 1 2 . . Core . | . . . . . Reactor . | . . . . . Propulsion 12 | 2 . 4 4 2 Treads . | . . . . . Leg 4 | 2 . 2 . . Wheel . | . . . . . Hover 2 | . . 2 . . Flight 6 | . . . 4 2 Utility 11 | 2 2 6 . 1 Device 6 | 1 2 3 . . Storage 2 | 1 . 1 . . Processor 3 | . . 2 . 1 Hackware . | . . . . . Protection . | . . . . . Artifact . | . . . . . Weapon 23 | 2 4 5 1 11 Energy Gun 3 | . 2 1 . . Energy Cannon 4 | . . . . 4 Ballistic Gun 7 | 2 . 3 . 2 Ballistic Cannon 1 | . 1 . . . Launcher 2 | . . . 1 1 Special Weapon 6 | . 1 1 . 4 Impact Weapon . | . . . . . Slashing Weapon . | . . . . . Piercing Weapon . | . . . . . Special Melee Weapon . | . . . . . Unidentified Prototypes 3 | . 1 1 . 1 Parts Lost 12 | . . 2 . 10 Power 2 | . . 1 . 1 Propulsion 5 | . . . . 5 Utility 3 | . . 1 . 2 Weapon 2 | . . . . 2 Highest Loss Streak 9 | . . 2 . 9 To Critical Strikes . | . . . . . Average Slot Usage (%) 92 | . 100 87 96 78 Engine 9 | . 14 3 9 7 Leg 19 | . 28 16 . . Flight 5 | . . . 36 31 Device 16 | . 14 22 18 15 Storage 12 | . 14 11 9 8 Processor 4 | . . 10 9 8 Energy Gun 4 | . . 11 . . Ballistic Gun 15 | . 25 7 6 . Special Weapon 2 | . . 3 6 5 Naked Turns 21 | . . . . 21 Heaviest Build 24 | 12 17 19 19 24 Greatest Support 20 | 20 20 20 16 16 Greatest Overweight (x) 4 | . . 1 1 4 Average Overweight (x) . | . . . . . Largest Inventory Capacity 10 | 8 8 10 10 10 Average Capacity 8 | 7 8 9 10 9 Most Carried 10 | 2 8 10 9 10 Average Carried 5 | . 4 8 7 8 Final Capacity 10 | 8 8 10 10 5 Final Carried 9 | 2 8 9 8 5 Class Distribution -------------------- 66% | Mutant 24% | Scavenger-Mutant 9% | Scavenger-Sprinter Dominant Class ---------------- Mutant | -10/Materials Scavenger-Mutant | -9/Materials Scavenger-Mutant | -8/Materials Scavenger-Sprinter | -8/Storage Resources | -11 -10 -9 -8 -8 ----------- Run | Scr Mat Mat Mat Sto Matter Collected 882 | 328 216 188 . 150 Remotely . | . . . . . Salvage Created 1015 | 101 311 389 . 214 Parts 60 | 12 10 22 . 16 Haulers Intercepted . | . . . . . Recyclers Shooed 3 | 1 . 2 . . Parts Field Recycled . | . . . . . Retrieved Matter . | . . . . . Parts Self-Destructed . | . . . . . Prevented . | . . . . . Kills | -11 -10 -9 -8 -8 ------- Run | Scr Mat Mat Mat Sto Combat Hostiles Destroyed 19 | . 7 6 . 6 Guns 12 | . 4 5 . 3 Cannons 5 | . 3 . . 2 AOE 2 | . . 1 . 1 Classes Destroyed 7 | 1 3 2 . 1 Builder 1 | . . . . 1 Tunneler 5 | 5 . . . . Recycler 3 | . 1 2 . . Watcher 2 | . . 2 . . Swarmer 6 | . 1 2 . 3 Grunt 10 | . 6 3 . 1 Sentry 3 | . . 1 . 2 Best Kill Streak 5 | 1 2 5 . 4 Combat Bots Only 3 | . 1 2 . 3 Max Kills in Single Turn 1 | 1 1 1 . 1 Gunslinging . | . . . . . Exploded 1 | . . 1 . 1 Melee . | . . . . . Uniques/NPCs Destroyed . | . . . . . Combat | -11 -10 -9 -8 -8 -------- Run | Scr Mat Mat Mat Sto Damage Taken 1576 | . 256 290 . 1030 Core 653 | . 69 26 . 558 Absorbed by Shields . | . . . . . Regen/Repaired (Parts) 12 | . . 12 . . Core Remaining (%) 88 | 100 72 93 . . Volleys Fired 121 | 16 38 42 . 25 Largest 2 | 2 2 2 . 2 Hottest 112 | 40 112 112 . 100 Shots Fired 172 | 32 56 57 . 27 Gun 130 | 32 36 54 . 8 Cannon 29 | . 19 . . 10 Launcher 1 | . . . . 1 Special 12 | . 1 3 . 8 Kinetic 108 | 32 51 17 . 8 Thermal 55 | . 5 32 . 18 Explosive . | . . . . . Electromagnetic 9 | . . 8 . 1 Robot Hit Streak 6 | 5 4 6 . 6 Robot Miss Streak 2 | 2 2 2 . 1 Penetration Max . | . . . . . Secondary Targets . | . . . . . Shots Hit Robots 104 | 19 35 36 . 14 Core Hits 41 | 7 12 12 . 10 Critical Kills . | . . . . . Critical Parts Destroyed . | . . . . . Critical Strikes 3 | . . 3 . . Burn 3 | . . 3 . . Melee Attacks . | . . . . . Impact . | . . . . . Slashing . | . . . . . Piercing . | . . . . . Sneak Attacks . | . . . . . Combat Hostiles . | . . . . . Follow-up Attacks . | . . . . . Damage Inflicted 1725 | 200 493 662 . 370 Guns 1132 | 200 253 607 . 72 Cannons 415 | . 240 . . 175 Explosions 152 | . . 55 . 97 Melee . | . . . . . Ramming 2 | . . . . 2 Kinetic 927 | 200 444 211 . 72 Thermal 622 | . 49 374 . 199 Explosive . | . . . . . Electromagnetic 174 | . . 77 . 97 Impact . | . . . . . Slashing . | . . . . . Piercing . | . . . . . Highest Corruption . | . . . . . Average Corruption . | . . . . . Corruption Purged . | . . . . . Corruption Blocked . | . . . . . Overload Shots . | . . . . . Overflow Damage . | . . . . . Projectiles . | . . . . . Explosions . | . . . . . Melee . | . . . . . Knockbacks 4 | . 4 . . . Impact . | . . . . . Kinetic 3 | . 3 . . . Secondary 1 | . 1 . . . Self-Inflicted Damage 36 | . . 11 . 25 Shots 2 | . . 1 . 1 Rammed 4 | . . . . 4 Targets Rammed 4 | . . . . 4 Kicked . | . . . . . Crushed . | . . . . . Highest Temperature 347 | . 114 347 . 165 Average Temperature 71 | . 22 138 . 42 Received Heat Transfer 777 | . 132 132 . 513 Effects 2 | . . 2 . . Interference 2 | . . 2 . . Siege Activations . | . . . . . Robots Corrupted . | . . . . . Combat Hostiles . | . . . . . Parts Fried . | . . . . . Impact Corruptions . | . . . . . Robots Melted . | . . . . . Combat Hostiles . | . . . . . Parts Melted 4 | . . 4 . . Heat Transferred 1395 | . 111 975 . 309 Parts Sabotaged . | . . . . . Parts Stolen . | . . . . . Parts Stripped . | . . . . . Power Chain Reactions 1 | . . 1 . . Missiles Intercepted . | . . . . . Alert | -11 -10 -9 -8 -8 ------- Run | Scr Mat Mat Mat Sto Peak Influence 329 | 25 268 329 34 254 Initial 113 | . 16 113 34 14 Average 81 | 12 33 174 34 86 Maximum Alert Level 1 | . 1 1 . 1 Low Security (%) 85 | 100 93 70 100 82 Level 1 14 | . 6 29 . 17 Level 2 . | . . . . . Level 3 . | . . . . . Level 4 . | . . . . . Level 5 . | . . . . . High Security . | . . . . . Max Security . | . . . . . Squads Dispatched 6 | . 3 1 . 2 Investigation 1 | . . . . 1 Extermination . | . . . . . Reinforcement 5 | . 3 1 . 1 Assault . | . . . . . Garrison . | . . . . . Intercept . | . . . . . Searches Triggered . | . . . . . Construction Impeded . | . . . . . Haulers Reinforced . | . . . . . Active Scanning Responses . | . . . . . Cargo Convoy Interrupts . | . . . . . Stealth | -11 -10 -9 -8 -8 --------- Run | Scr Mat Mat Mat Sto Distress Signals 5 | . 3 1 . 1 Communications Jammed . | . . . . . Distress Signals . | . . . . . Times Spotted 52 | . 19 12 . 21 Peak Tracking Total 12 | . 4 3 . 12 Tactical Retreats 4 | . 2 1 . 1 Traps | -11 -10 -9 -8 -8 ------- Run | Scr Mat Mat Mat Sto Traps Triggered . | . . . . . Indirectly . | . . . . . Trap Hack Attempts . | . . . . . Triggered . | . . . . . Disarmed . | . . . . . Reprogrammed . | . . . . . Reused . | . . . . . Traps Extracted . | . . . . . Installed . | . . . . . Triggered . | . . . . . Machines | -11 -10 -9 -8 -8 ---------- Run | Scr Mat Mat Mat Sto Machines Disabled 5 | . 1 2 . 2 Max in Single Turn 1 | . 1 1 . 1 Machines Sabotaged . | . . . . . Garrisons Compromised . | . . . . . Overloaded Fab Kills . | . . . . . Hacking | -11 -10 -9 -8 -8 --------- Run | Scr Mat Mat Mat Sto Machines Accessed 11 | . 3 3 . 5 Terminals 9 | . 3 1 . 5 Fabricators . | . . . . . Repair Stations 2 | . . 2 . . Recycling Units . | . . . . . Scanalyzers . | . . . . . Garrison Access . | . . . . . Total Hacks 34 | . 8 8 . 18 Successful 15 | . 5 4 . 6 Failed 19 | . 3 4 . 12 Catastrophic 3 | . 1 . . 2 Database Lockouts . | . . . . . Manual 24 | . 5 1 . 18 Terminals 28 | . 8 2 . 18 Fabricators . | . . . . . Repair Stations 6 | . . 6 . . Recycling Units . | . . . . . Scanalyzers . | . . . . . Garrison Access . | . . . . . Terminal Hacks 6 | . 3 1 . 2 Record 1 | . . 1 . . Branch Access Points 1 | . . . . 1 Emergency Access Points 1 | . 1 . . . Terminal Index 1 | . . . . 1 Locate Traps 1 | . 1 . . . Zone Layout 1 | . 1 . . . Fabricator Hacks . | . . . . . Repair Station Hacks 3 | . . 3 . . Scan Component 2 | . . 2 . . Repair 1 | . . 1 . . Recycling Unit Hacks . | . . . . . Scanalyzer . | . . . . . Garrison Access Hacks . | . . . . . Unauthorized Hacks 6 | . 2 . . 4 Terminals 6 | . 2 . . 4 Track 1 | . 1 . . . Botnet 5 | . 1 . . 4 Fabricators . | . . . . . Repair Stations . | . . . . . Recycling Units . | . . . . . Scanalyzers . | . . . . . Garrison Access . | . . . . . Data Cores Recovered . | . . . . . Used . | . . . . . Hacking Detections 8 | . 2 2 . 4 Full Trace Events 2 | . . . . 2 Feedback Events . | . . . . . Feedback Blocked . | . . . . . Robot Schematics Acquired . | . . . . . Robots Built . | . . . . . Authchips . | . . . . . Time . | . . . . . Total Robot Build Rating . | . . . . . Part Schematics Acquired . | . . . . . Parts Built . | . . . . . Authchips . | . . . . . Time . | . . . . . Total Part Build Rating . | . . . . . Parts Repaired 1 | . . 1 . . Time 13 | . . 13 . . Parts Recycled . | . . . . . Recycled Matter . | . . . . . Retrieved Matter . | . . . . . Retrieved Components . | . . . . . Parts Scanalyzed . | . . . . . Part Schematics Acquired . | . . . . . Parts Damaged . | . . . . . Bothacking | -11 -10 -9 -8 -8 ------------ Run | Scr Mat Mat Mat Sto Used RIF Installer . | . . . . . Robots Hacked . | . . . . . Non-combat . | . . . . . Combat . | . . . . . Robot Hacks Applied . | . . . . . Relay Couplers Released . | . . . . . Fabnet Peak Effective % . | . . . . . Robots Rewired . | . . . . . Allies Hacked . | . . . . . Hacks Repelled . | . . . . . Allies | -11 -10 -9 -8 -8 -------- Run | Scr Mat Mat Mat Sto Total Allies . | . . . . . Largest Group . | . . . . . Highest-Rated Group . | . . . . . Highest-Rated Ally . | . . . . . Total Orders . | . . . . . Ally Attacks . | . . . . . Total Damage . | . . . . . Kills . | . . . . . Allies Corrupted . | . . . . . Allies Melted . | . . . . . Intel | -11 -10 -9 -8 -8 ------- Run | Scr Mat Mat Mat Sto Robot Analysis Total . | . . . . . Derelict Logs Recovered . | . . . . . Drone Launches . | . . . . . Drone Recoveries . | . . . . . Exploration | -11 -10 -9 -8 -8 ------------- Run | Scr Mat Mat Mat Sto Turns Passed 3080 | 217 1478 905 30 450 Spaces Moved 953 | 135 264 288 10 256 Core 53 | 3 . . . 50 Treads . | . . . . . Legs 652 | 132 264 256 . . Wheels . | . . . . . Hover 35 | . . 32 3 . Flight 213 | . . . 7 206 Fastest Speed 31 | 50 120 116 31 31 Average Speed 101 | 118 120 129 56 42 Slowest Speed 360 | 120 120 190 116 360 Overloaded Moves . | . . . . . Propulsion Burnouts . | . . . . . Robots Hopped 2 | . . . . 2 Cave-ins Triggered . | . . . . . Exploration Rate (%) 23 | 5 37 25 3 46 Regions Visited 4 Branch Regions 1 Pre-discovered Areas . | . . . . . Known Exits Taken . | . . . . . Unknown Exits Taken 4 | 1 1 1 1 . Scrap Searched . | . . . . . Spaces Dug 9 | . 1 2 . 6 Terrain Destroyed 14 | . 1 4 . 9 Melee . | . . . . . Projectile 12 | . 1 2 . 9 AOE 2 | . . 2 . . Terrain Rammed . | . . . . . Walls Destroyed . | . . . . . Machines Disabled . | . . . . . Actions | -11 -10 -9 -8 -8 --------- Run | Scr Mat Mat Mat Sto Total 2863 | 160 1368 757 32 546 Wait 1698 | . 1052 389 17 240 Move 946 | 134 263 287 9 253 Hop 1 | . . . . 1 Pick Up 23 | 3 6 12 . 2 Fast Attach 13 | 6 1 3 . 3 Attach 13 | 1 . 5 2 5 Detach 8 | . 1 1 1 5 Swap 24 | . 6 9 3 6 Drop 12 | . 1 9 . 2 Fire 121 | 16 38 42 . 25 Melee . | . . . . . Ram 4 | . . . . 4 Kick . | . . . . . Crush . | . . . . . Escape Stasis . | . . . . . Rewire . | . . . . . Trap . | . . . . . Miscellaneous . | . . . . . Route ------- -11/Scrapyard -10/Materials -9/Materials -8/Materials -8/Storage (discovered 1 exit: Rec) History --------- Turn | Location | Event 7 | -11/Scrapyard | Discovered new exit (range 15) 218 | -11/Scrapyard | Entered Materials 317 | -10/Materials | Build established: Mutant 1651 | -10/Materials | Discovered new exit (range 10) 1696 | -10/Materials | Entered another Materials area 1696 | -9/Materials | Evolved 2 slots: Utility x2 2295 | -9/Materials | Repaired Flight Unit 2322 | -9/Materials | Build established: Scavenger-Mutant 2597 | -9/Materials | Discovered new exit (range 4) 2601 | -9/Materials | Entered another Materials area 2601 | -8/Materials | Evolved 2 slots: Propulsion x2 2601 | -8/Materials | Discovered new exit (range 8) 2631 | -8/Materials | Entered Storage 3031 | -8/Storage | Core integrity fell below 50% 3048 | -8/Storage | Core integrity fell below 20% 3068 | -8/Storage | Lost 9 parts (1p5n2u1w) 3073 | -8/Storage | Identified exit to Recycling 3081 | -8/Storage | Destroyed by G-50 Soldier with Heavy Laser Last Messages --------------- Trojan loaded successfully. Testing... Terminal linked with 1 system. Awaiting botnet instructions. 03061_ Critical hit (Burn: +37). 03070_ Mining Laser destroyed. 03073_ Connecting with Terminal... >>Trojan(Botnet) Trojan loaded successfully. Testing... Terminal linked with 2 systems. Awaiting botnet instructions. >>Access(Branch) Found 1 branch access point: (61,60) Recycling Map updated. 03073_ ALERT: Suspicious activity at Terminal S007. Dispatching Investigation squad. 03075_ Acquired VSS Leg. 03077_ Acquired Targeting Computer. Map ----- +----------------------------------------------------+ | | | | | | | | | | | | | | | | | | | ??????????#########????????? | | ??????????# ????????? | | ??????????# "" #???????? | | ??????????# "Y #???????? | | ??????????# "" ######### | | ??????????# # | | ?????? ??# """ + | | ?????? ??# """ # | | ?????? ??# """ ###+#+### | | ?????? ??# #? =% ? | | ?????? ??# ######## !""" | | ?????? #?#????????# """ | | ?????? #??????????# """ | | ####+## #???????? # """ | | #! ! ## #????????? # """ | | #t ## #????????? # | | # @!## ##???????? # ?? | | # # ######??#/# ?? | | # g T %# #####?? | | # #g ######??# ##??????? | | # a ##g##???????# ##??????# | | # ## ####?????# #????#??# | | # / ;""####### ##??##??? | | ###### ### ## ##??#???# | | ?????# ??#""" # #??????? | | ?????# ??#""" / T #?????#? | | ?????# ??#""" # #??????? | | ????? ??# ## ##????#?? | | ????? ??# ## #???????? | | ????? ??###+##### #???????# | | ????## ??????????# #####?#?? | | ?????#?????#????## #///#???? | | ?????# ##### ##### #///#?### | | ?????# # #??# | | ??????????## # #??# | | ???????????# ##+##### | | ???????????# | | ???????????# ##+##/## | | ???????????#????? # """ | | ?????????????????"""# """ | | ?????????????????"""# """ | +----------------------------------------------------+ Best States ------------- Heat Dissipation 31 Energy Generation 10 Energy Capacity 250 Matter Stores 300 Matter Capacity 300 Sight Range 18 Robot Scan Range 14 Terrain Scan Range 16 Terrain Scan Density 10 Evasion (%) 63 Targeting Accuracy 5 Item Schematics ----------------- None Robot Schematics ------------------ None Fabricated ------------ Nothing Alien Tech Used ----------------- None Achievements -------------- None Challenges ------------ None Game ------ Seed NodeGrapheneProcessor Manual? 0 Play Time 00:37:26 Cumulative 113.0 hours Start 2022.03.19 @ 10:29:47 End 2022.03.19 @ 11:09:31 Sessions 1 Manual Loads 0 Difficulty Rogue Special Mode None Game No. 181 Rogue 181 Adventurer 0 Explorer 0 Win Type - Total 0 Types 0/0/0/0/0/0/0/0/0 Lore% 46 Gallery% 50 Achievement% 36 Wizard Run 0 Options --------- ASCII 0 Keyboard 0 Movement Mouse Keybinds 0 Fullscreen 1 Font 12/Smallcaps Map View 83x54 Tactical HUD 1 Map Filters NONE Filters NONE Steam 1 RUN: 4d0a9463-8e39-400d-912e-7a5317524f0a